fUST/lending_fUST_20250810
["ID","MTS","AMOUNT","RATE_DAILY","PERIOD"]
[378333348,1754829043399,-567.0616523,0.00022188,2]
[378333350,1754829043408,-740.32,0.00022188,2]
[378333352,1754829043417,-738.29,0.00022188,2]
[378333354,1754829043427,-460.0,0.00022188,2]
[378333356,1754829043437,-569.96,0.00022188,2]
[378333358,1754829043447,-460.0,0.00022189,2]
[378333361,1754829043456,-460.0,0.00022189,2]
[378333363,1754829043465,-2472.43,0.00022189,2]
[378333366,1754829043474,-722.42,0.00022189,2]
[378333369,1754829043487,-887.8,0.00022189,2]
[378333372,1754829043496,-870.3,0.0002219,2]
[378333374,1754829043505,-460.0,0.0002219,2]
[378333377,1754829043515,-1247.5,0.00022191,2]
[378333380,1754829043525,-460.0,0.00022191,2]
[378333382,1754829043535,-1226.89,0.00022191,2]
[378333384,1754829043544,-460.0,0.00022191,2]
[378333386,1754829043555,-830.18,0.00022191,2]
[378333388,1754829043565,-939.54,0.00022191,2]
[378333389,1754829043574,-944.31,0.00022191,2]
[378333390,1754829043583,-508.35,0.00022191,2]
[378333391,1754829043593,-898.73865464,0.00022248,2]
[378333392,1754829043603,-460.0,0.0002243,2]
[378333393,1754829043612,-486.88,0.0002243,2]
[378333394,1754829043622,-585.48,0.0002243,2]
[378333395,1754829043631,-460.0,0.0002243,2]
[378333396,1754829043640,-651.71,0.0002243,2]
[378333397,1754829043649,-2329.79609565,0.00022456,2]
[378333398,1754829043658,-740.32,0.00022462,2]
[378333399,1754829043668,-738.29,0.00022462,2]
[378333401,1754829043678,-460.0,0.00022462,2]
[378333403,1754829043687,-569.96,0.00022462,2]
[378333405,1754829043697,-460.0,0.00022463,2]
[378333406,1754829043707,-460.0,0.00022463,2]
[378333407,1754829043718,-2472.43,0.00022463,2]
[378333408,1754829043727,-722.42,0.00022463,2]
[378333409,1754829043737,-887.8,0.00022463,2]
[378333410,1754829043746,-870.3,0.00022464,2]
[378333411,1754829043756,-460.0,0.00022464,2]
[378333412,1754829043765,-1247.5,0.00022465,2]
[378333413,1754829043774,-460.0,0.00022465,2]
[378333414,1754829043783,-1226.89,0.00022465,2]
[378333415,1754829043792,-460.0,0.00022465,2]
[378333416,1754829043802,-830.18,0.00022465,2]
[378333417,1754829043811,-939.54,0.00022465,2]
[378333418,1754829043821,-944.31,0.00022465,2]
[378333419,1754829043830,-508.35,0.00022465,2]
[378333420,1754829043839,-151.0,0.000226,10]
[378333421,1754829043849,-151.0,0.000226,5]
[378333422,1754829043858,-260.0,0.00022632,2]
[378333423,1754829043868,-3958.51328385,0.00022637,2]
[378333424,1754829043878,-486.88,0.00022704,2]
[378333425,1754829043888,-585.48,0.00022704,2]
[378333426,1754829043898,-651.71,0.00022704,2]
[378333427,1754829043907,-740.32,0.00022736,2]
[378333428,1754829043916,-738.29,0.00022736,2]
[378333429,1754829043926,-460.0,0.00022736,2]
[378333430,1754829043935,-569.96,0.00022736,2]
[378333431,1754829043944,-285.76246964,0.00022737,2]
[378333432,1754829043953,-2472.43,0.00022737,2]
[378333433,1754829043963,-722.42,0.00022737,2]
[378333434,1754829043972,-887.8,0.00022737,2]
[378333435,1754829043981,-870.3,0.00022738,2]
[378333436,1754829043990,-460.0,0.00022738,2]
[378333437,1754829043999,-1247.5,0.00022739,2]
[378333438,1754829044008,-460.0,0.00022739,2]
[378333439,1754829044018,-1226.89,0.00022739,2]
[378333440,1754829044027,-460.0,0.00022739,2]
[378333441,1754829044036,-830.18,0.00022739,2]
[378333442,1754829044045,-939.54,0.00022739,2]
[378333443,1754829044054,-944.31,0.00022739,2]
[378333444,1754829044063,-508.35,0.00022739,2]
[378333445,1754829044072,-500.0,0.00022831,2]
[378333446,1754829044081,-372.91866161,0.00022831,2]
[378333447,1754829044091,-500.0,0.00022831,2]
[378333448,1754829044100,-500.0,0.00022831,2]
[378333449,1754829044110,-486.88,0.00022978,2]
[378333450,1754829044119,-585.48,0.00022978,2]
[378333451,1754829044128,-651.71,0.00022978,2]
[378333452,1754829044137,-231.96268195,0.00023,3]
[378333453,1754829044171,-160.0,0.00023,3]
[378333454,1754829044180,-216.64838636,0.00023,3]
[378333455,1754829044190,-160.0,0.00023,3]
[378333456,1754829044199,-193.93783112,0.00023,2]
[378333457,1754829044208,-1359.7280243,0.00023,2]
[378333458,1754829044217,-1340.43618727,0.00023,2]
[378333459,1754829044227,-160.0,0.00023,2]
[378333460,1754829044235,-160.0,0.00023,3]
[378333461,1754829044244,-160.0,0.00023,3]
[378333462,1754829044252,-843.0869304,0.00023,3]
[378333463,1754829044262,-740.32,0.0002301,2]
[378333464,1754829044271,-738.29,0.0002301,2]
[378333465,1754829044280,-460.0,0.0002301,2]
[378333466,1754829044290,-569.96,0.0002301,2]
[378333467,1754829044299,-2472.43,0.00023011,2]
[378333468,1754829044308,-722.42,0.00023011,2]
[378333469,1754829044318,-887.8,0.00023011,2]
[378333470,1754829044328,-870.3,0.00023012,2]
[378333471,1754829044337,-460.0,0.00023012,2]
[378333472,1754829044345,-1247.5,0.00023013,2]
[378333473,1754829044354,-460.0,0.00023013,2]
[378333474,1754829044363,-1226.89,0.00023013,2]
[378333475,1754829044372,-460.0,0.00023013,2]
[378333476,1754829044382,-830.18,0.00023013,2]
[378333477,1754829044391,-939.54,0.00023013,2]
[378333478,1754829044400,-944.31,0.00023013,2]
[378333479,1754829044410,-508.35,0.00023013,2]
[378333480,1754829044419,-166.0,0.00023014,7]
[378333481,1754829044429,-200.0,0.00023051,15]
[378333482,1754829044438,-200.0,0.00023051,15]
[378333483,1754829044447,-300.0,0.00023051,15]
[378333484,1754829044457,-151.0,0.00023053,2]
[378333485,1754829044467,-151.0,0.00023053,2]
[378333486,1754829044477,-18502.69577858,0.00023053,2]
[378333487,1754829044489,-151.0,0.00023053,2]
[378333488,1754829044498,-500.0,0.00023053,2]
[378333489,1754829044507,-151.0,0.00023053,2]
[378333490,1754829044516,-500.0,0.00023053,2]
[378333491,1754829044526,-151.0,0.00023053,2]
[378333492,1754829044535,-151.0,0.00023053,2]
[378333493,1754829044544,-151.0,0.00023053,2]
[378333494,1754829044554,-151.0,0.00023053,2]
[378333495,1754829044564,-500.0,0.00023053,2]
[378333496,1754829044573,-151.0,0.00023053,2]
[378333497,1754829044582,-500.0,0.00023053,2]
[378333498,1754829044592,-500.0,0.00023053,2]
[378333499,1754829044601,-151.0,0.00023053,2]
[378333500,1754829044610,-500.0,0.00023053,2]
[378333501,1754829044619,-151.0,0.00023053,2]
[378333502,1754829044628,-151.0,0.00023053,2]
[378333503,1754829044637,-500.0,0.00023053,2]
[378333504,1754829044647,-151.0,0.00023053,2]
[378333505,1754829044656,-263.85481817,0.00023053,2]
[378333506,1754829044666,-500.0,0.00023053,2]
[378333507,1754829044675,-151.0,0.00023053,2]
[378333508,1754829044684,-151.0,0.00023053,2]
[378333509,1754829044693,-500.0,0.00023053,2]
[378333510,1754829044703,-151.0,0.00023053,2]
[378333511,1754829044712,-500.0,0.00023053,2]
[378333512,1754829044721,-151.0,0.00023053,2]
[378333513,1754829044731,-500.0,0.00023053,2]
[378333514,1754829044740,-151.0,0.00023053,2]
[378333515,1754829044749,-500.0,0.00023053,2]
[378333516,1754829044759,-500.0,0.00023053,2]
[378333517,1754829044768,-151.0,0.00023053,2]
[378333518,1754829044777,-500.0,0.00023053,2]
[378333519,1754829044786,-500.0,0.00023053,2]
[378333520,1754829044796,-500.0,0.00023053,2]
[378333521,1754829044805,-151.0,0.00023053,2]
[378333522,1754829044815,-151.0,0.00023053,2]
[378333523,1754829044824,-151.0,0.00023053,2]
[378333524,1754829044833,-250.0,0.00023053,2]
[378333525,1754829044843,-151.0,0.00023053,2]
[378333526,1754829044852,-250.0,0.00023053,2]
[378333527,1754829044861,-151.0,0.00023053,2]
[378333528,1754829044870,-250.0,0.00023053,2]
[378333529,1754829044879,-250.0,0.00023053,2]
[378333530,1754829044889,-250.0,0.00023053,2]
[378333531,1754829044898,-250.0,0.00023053,2]
[378333532,1754829044907,-250.0,0.00023053,2]
[378333533,1754829044917,-233.58820104,0.00023053,2]
[378333534,1754829044925,-500.0,0.00023073,2]
[378333535,1754829044935,-150.0,0.00023073,2]
[378333536,1754829044944,-150.0,0.00023073,2]
[378333537,1754829044953,-500.0,0.00023073,2]
[378333538,1754829044963,-500.0,0.00023073,2]
[378333539,1754829044973,-500.0,0.00023073,2]
[378333540,1754829044982,-500.0,0.00023073,2]
[378333541,1754829044991,-151.0,0.000231,10]
[378333542,1754829044999,-151.0,0.000231,5]
[378333543,1754829045008,-360.0,0.0002318,2]
[378333544,1754829045017,-153.0,0.00023186,2]
[378333545,1754829045026,-153.0,0.00023186,2]
[378333546,1754829045035,-966.88,0.00023189,2]
[378333547,1754829045044,-486.88,0.00023252,2]
[378333548,1754829045052,-585.48,0.00023252,2]
[378333549,1754829045061,-651.71,0.00023252,2]
[378333550,1754829045071,-740.32,0.00023284,2]
[378333551,1754829045080,-738.29,0.00023284,2]
[378333552,1754829045089,-460.0,0.00023284,2]
[378333553,1754829045099,-569.96,0.00023284,2]
[378333554,1754829045108,-2472.43,0.00023285,2]
[378333555,1754829045118,-722.42,0.00023285,2]
[378333556,1754829045127,-887.8,0.00023285,2]
[378333557,1754829045137,-870.3,0.00023286,2]
[378333558,1754829045147,-460.0,0.00023286,2]
[378333559,1754829045156,-1247.5,0.00023287,2]
[378333560,1754829045166,-460.0,0.00023287,2]
[378333561,1754829045176,-1226.89,0.00023287,2]
[378333562,1754829045185,-460.0,0.00023287,2]
[378333563,1754829045194,-830.18,0.00023287,2]
[378333564,1754829045203,-939.54,0.00023287,2]
[378333565,1754829045213,-944.31,0.00023287,2]
[378333566,1754829045223,-508.35,0.00023287,2]
[378333567,1754829045232,-500.0,0.00023288,2]
[378333568,1754829045242,-1000.0,0.00023379,2]
[378333569,1754829045252,-1000.0,0.00023379,2]
[378333570,1754829045261,-1000.0,0.00023379,2]
[378333571,1754829045270,-5619.68378043,0.00023409,2]
[378333572,1754829045280,-382.0,0.00023471,2]
[378333573,1754829045289,-151.0,0.000235,6]
[378333574,1754829045299,-151.0,0.000235,9]
[378333575,1754829045308,-1000.0,0.000235,2]
[378333576,1754829045317,-2329.79609565,0.00023503,2]
[378333577,1754829045327,-486.88,0.00023526,2]
[378333578,1754829045336,-585.48,0.00023526,2]
[378333579,1754829045346,-651.71,0.00023526,2]
[378333580,1754829045355,-2150.0,0.00023529,2]
[378333581,1754829045365,-971.0,0.00023529,2]
[378333582,1754829045375,-636.0,0.00023529,2]
[378333583,1754829045384,-408.0,0.00023529,2]
[378333584,1754829045394,-740.32,0.00023558,2]
[378333585,1754829045404,-738.29,0.00023558,2]
[378333586,1754829045413,-460.0,0.00023558,2]
[378333587,1754829045423,-569.96,0.00023558,2]
[378333588,1754829045432,-2472.43,0.00023559,2]
[378333589,1754829045441,-722.42,0.00023559,2]
[378333590,1754829045451,-887.8,0.00023559,2]
[378333591,1754829045460,-870.3,0.0002356,2]
[378333592,1754829045470,-460.0,0.0002356,2]
[378333593,1754829045482,-1247.5,0.00023561,2]
[378333594,1754829045492,-460.0,0.00023561,2]
[378333595,1754829045501,-1226.89,0.00023561,2]
[378333596,1754829045511,-460.0,0.00023561,2]
[378333597,1754829045520,-830.18,0.00023561,2]
[378333598,1754829045530,-939.54,0.00023561,2]
[378333599,1754829045540,-944.31,0.00023561,2]
[378333600,1754829045549,-508.35,0.00023561,2]
[378333601,1754829045560,-183.384,0.000236,4]
[378333602,1754829045569,-500.0,0.00023621,2]
[378333603,1754829045579,-250.0,0.00023621,2]
[378333604,1754829045588,-1000.0,0.00023621,2]
[378333605,1754829045598,-1000.0,0.00023621,2]
[378333606,1754829045607,-1000.0,0.00023621,2]
[378333607,1754829045616,-460.0,0.00023728,2]
[378333608,1754829045625,-486.88,0.000238,2]
[378333609,1754829045634,-585.48,0.000238,2]
[378333610,1754829045644,-651.71,0.000238,2]
[378333611,1754829045653,-740.32,0.00023832,2]
[378333612,1754829045662,-738.29,0.00023832,2]
[378333613,1754829045671,-460.0,0.00023832,2]
[378333614,1754829045681,-569.96,0.00023832,2]
[378333615,1754829045691,-2472.43,0.00023833,2]
[378333616,1754829045700,-722.42,0.00023833,2]
[378333617,1754829045710,-887.8,0.00023833,2]
[378333618,1754829045720,-870.3,0.00023834,2]
[378333619,1754829045729,-188.17655777,0.00023834,2]
[378333620,1754829045739,-1247.5,0.00023835,2]
[378333621,1754829045749,-418.77360621,0.00023835,2]
[378333622,1754829045758,-1226.89,0.00023835,2]
[378333623,1754829045768,-460.0,0.00023835,2]
[378333624,1754829045777,-830.18,0.00023835,2]
[378333625,1754829045787,-939.54,0.00023835,2]
[378333626,1754829045796,-944.31,0.00023835,2]
[378333628,1754829045806,-508.35,0.00023835,2]
[378333629,1754829045815,-4556.80004899,0.0002388,2]
[378333630,1754829045824,-1500.0,0.00023927,2]
[378333631,1754829045834,-1500.0,0.00023927,2]
[378333632,1754829045843,-1500.0,0.00023927,2]
[378333633,1754829045853,-150.0,0.00023961,2]
[378333634,1754829045862,-151.0,0.00024,9]
[378333636,1754829045873,-1000.0,0.00024,24]
[378333637,1754829045882,-151.0,0.00024,5]
[378333638,1754829045892,-527.86640923,0.00024,7]
[378333639,1754829045901,-461.62346162,0.00024,7]
[378333640,1754829045911,-231.96268195,0.00024,7]
[378333641,1754829045921,-160.0,0.00024,7]
[378333642,1754829045931,-216.64838636,0.00024,7]
[378333643,1754829045940,-1700.03605386,0.00024,2]
[378333644,1754829045950,-323.08855856,0.00024,2]
[378333645,1754829045959,-455.63130091,0.00024,2]
[378333646,1754829045968,-500.0,0.0002401,2]
[378333647,1754829045978,-486.88,0.00024074,2]
[378333648,1754829045988,-585.48,0.00024074,2]
[378333649,1754829045997,-651.71,0.00024074,2]
[378333650,1754829046007,-176.048611,0.00024106,2]
[378333651,1754829046016,-740.32,0.00024106,2]
[378333652,1754829046027,-738.29,0.00024106,2]
[378333653,1754829046037,-195.58559887,0.00024106,2]
[378333654,1754829046046,-569.96,0.00024106,2]
[378333655,1754829046056,-2472.43,0.00024107,2]
[378333656,1754829046066,-722.42,0.00024107,2]
[378333657,1754829046075,-887.8,0.00024107,2]
[378333658,1754829046085,-870.3,0.00024108,2]
[378333659,1754829046094,-1247.5,0.00024109,2]
[378333660,1754829046104,-1226.89,0.00024109,2]
[378333661,1754829046114,-460.0,0.00024109,2]
[378333662,1754829046124,-830.18,0.00024109,2]
[378333663,1754829046133,-939.54,0.00024109,2]
[378333664,1754829046143,-944.31,0.00024109,2]
[378333665,1754829046152,-508.35,0.00024109,2]
[378333666,1754829046162,-382.0,0.0002411,3]
[378333667,1754829046172,-350.0,0.00024168,2]
[378333668,1754829046181,-1500.0,0.00024168,2]
[378333669,1754829046191,-1500.0,0.00024168,2]
[378333670,1754829046200,-222.34,0.00024183,2]
[378333671,1754829046210,-437.04,0.00024247,2]
[378333672,1754829046219,-560.0,0.00024276,2]
[378333673,1754829046228,-486.88,0.00024348,2]
[378333674,1754829046238,-585.48,0.00024348,2]
[378333675,1754829046247,-651.71,0.00024348,2]
[378333676,1754829046256,-341.0,0.00024366,2]
[378333677,1754829046266,-966.88,0.00024378,2]
[378333678,1754829046275,-740.32,0.0002438,2]
[378333679,1754829046285,-738.29,0.0002438,2]
[378333680,1754829046295,-569.96,0.0002438,2]
[378333681,1754829046304,-2472.43,0.00024381,2]
[378333682,1754829046314,-722.42,0.00024381,2]
[378333683,1754829046323,-887.8,0.00024381,2]
[378333684,1754829046333,-870.3,0.00024382,2]
[378333685,1754829046343,-1247.5,0.00024383,2]
[378333686,1754829046353,-1226.89,0.00024383,2]
[378333687,1754829046362,-460.0,0.00024383,2]
[378333688,1754829046372,-830.18,0.00024383,2]
[378333689,1754829046381,-939.54,0.00024383,2]
[378333690,1754829046391,-944.31,0.00024383,2]
[378333691,1754829046400,-508.35,0.00024383,2]
[378333692,1754829046410,-151.0,0.000244,5]
[378333693,1754829046419,-151.0,0.000244,8]
[378333694,1754829046428,-151.0,0.000244,10]
[378333695,1754829046437,-151.0,0.00024422,2]
[378333696,1754829046447,-19021.09069552,0.00024422,2]
[378333697,1754829046589,-166.20482686,0.00024422,2]
[378333698,1754829046600,-2000.0,0.00024475,2]
[378333699,1754829046610,-2000.0,0.00024475,2]
[378333700,1754829046619,-2055.93351593,0.00024475,2]
[378333701,1754829046629,-659.4625897,0.000245,2]
[378333702,1754829046639,-2329.79609565,0.0002455,2]
[378333703,1754829046649,-341.0,0.00024618,2]
[378333704,1754829046659,-486.88,0.00024622,2]
[378333705,1754829046670,-585.48,0.00024622,2]
[378333706,1754829046679,-651.71,0.00024622,2]
[378333707,1754829046689,-348400.6261524,0.00024638,2]
[378333708,1754829046699,-1742.51087258,0.0002465,2]
[378333710,1754829046710,-172758.43346089,0.0002465,2]
[378333771,1754829047283,-11395.28407651,0.0002465,2]
[378333774,1754829047295,-353.72246964,0.0002465,2]
[378333776,1754829047306,-359.1962722,0.0002465,2]
[378333799,1754829047520,460.0,0.00019997,2]
[378333803,1754829047545,-460.0,0.00019999,2]
[378333805,1754829047556,-460.0,0.00019999,2]
[378333807,1754829047565,-317.40194088,0.00020271,2]
[378333809,1754829047577,-142.59805912,0.00020271,2]
[378333811,1754829047587,-460.0,0.00020273,2]
[378333813,1754829047596,-460.0,0.00020545,2]
[378333815,1754829047606,-78.58364183,0.00020821,2]
[378333817,1754829047617,-381.41635817,0.00020821,2]
[378333819,1754829047627,-460.0,0.00021095,2]
[378333821,1754829047636,-460.0,0.00021369,2]
[378333823,1754829047646,-460.0,0.00021643,2]
[378333825,1754829047655,-460.0,0.00021917,2]
[378333827,1754829047664,-425.30128508,0.00022191,2]
[378333829,1754829047674,-9492.28235475,0.0002465,2]
[378333840,1754829047765,-460.0,0.00019999,2]
[378333842,1754829047775,-460.0,0.00019999,2]
[378333844,1754829047784,-460.0,0.00020271,2]
[378333846,1754829047793,-460.0,0.00020547,2]
[378333849,1754829047803,-460.0,0.00020821,2]
[378333850,1754829047812,-460.0,0.00021095,2]
[378333852,1754829047821,-393.28,0.00021369,2]
[378333854,1754829047830,-727.46,0.00023277,10]
[378333856,1754829047839,-303.66293133,0.0002465,2]
[378334041,1754829049779,5000.0,0.00019997,2]
[378334042,1754829049807,280.02038694,0.00019997,2]
[378334341,1754829058954,460.0,0.00019997,2]
[378334342,1754829060917,460.0,0.00019997,2]
[378334343,1754829063087,3746.0189685,0.00019997,2]
[378334344,1754829068527,460.0,0.00019997,2]
[378334345,1754829072977,3319.79250818,0.00019997,2]
[378334346,1754829073002,1680.20749182,0.00019997,2]
[378334348,1754829084622,460.0,0.00019997,2]
[378334349,1754829088852,5000.0,0.00019997,2]
[378334350,1754829104341,5000.0,0.00019997,2]
[378334351,1754829109166,460.0,0.00019997,2]
[378334352,1754829110441,460.0,0.00019997,2]
[378334353,1754829112298,460.0,0.00019997,2]
[378334357,1754829120210,5000.0,0.00019997,2]
[378334359,1754829124546,460.0,0.00019997,2]
[378334360,1754829126440,460.0,0.00019997,2]
[378334361,1754829127804,460.0,0.00019997,2]
[378334362,1754829135821,99.79250818,0.00019997,2]
[378334363,1754829135847,4900.20749182,0.00019997,2]
[378334364,1754829151267,5000.0,0.00019997,2]
[378334366,1754829166640,5000.0,0.00019997,2]
[378334367,1754829174849,460.0,0.00019997,2]
[378334368,1754829182551,4639.79250818,0.00019997,2]
[378334369,1754829182575,360.20749182,0.00019997,2]
[378334370,1754829183569,300.0,0.00019997,2]
[378334371,1754829185872,204.92985707,0.00019997,2]
[378334372,1754829198515,5000.0,0.00019997,2]
[378334373,1754829198621,460.0,0.00019997,2]
[378334374,1754829210910,5500.06500559,0.000199,2]
[378334375,1754829211721,200.0,0.00030065,120]
[378334376,1754829213680,5000.0,0.00019997,2]
[378334377,1754829229334,3174.79764552,0.00019997,2]
[378334378,1754829229357,1825.20235448,0.00019997,2]
[378334380,1754829243562,300.0,0.00019997,2]
[378334381,1754829245182,5000.0,0.00019997,2]
[378334382,1754829249745,463.31788289,0.00019997,2]
[378334383,1754829254133,566.97,0.00019997,2]
[378334384,1754829261423,5000.0,0.00019997,2]
[378334385,1754829277640,543.34,0.00019997,2]
[378334386,1754829278062,5000.0,0.00019997,2]
[378334387,1754829282545,853.25,0.00019997,2]
[378334388,1754829286904,233.808493,0.00019398,2]
[378334389,1754829287120,214.11126963,0.00019399,2]
[378334390,1754829287142,224.06383037,0.00019399,2]
[378334391,1754829287447,416.269825,0.00019564,2]
[378334392,1754829287782,251.03274538,0.00019662,2]
[378334393,1754829294219,5000.0,0.00019997,2]
[378334395,1754829303317,300.0,0.00019997,2]
[378334396,1754829311188,2912.81211859,0.00019997,2]
[378334397,1754829313729,817.7,0.00019997,2]
[378334398,1754829314518,3006.2712,0.0003,120]
[378334410,1754829381915,460.0,0.00019997,2]
[378334411,1754829396825,1200.0,0.00019997,2]
[378334413,1754829421368,5543.54258579,0.000199,2]
[378334414,1754829459183,460.0,0.00019997,2]
[378334415,1754829481132,2000.0,0.0003,120]
[378334416,1754829481789,677.473372,0.0001922,2]
[378334418,1754829489961,460.0,0.00019997,2]
[378334420,1754829512454,1277.10552287,0.00019169,2]
[378334421,1754829512477,8722.89447713,0.00019169,2]
[378334422,1754829512896,349.380389,0.00013699,2]
[378334423,1754829524747,2000.0,0.0003,120]
[378334424,1754829589761,204.910089,0.00019398,2]
[378334425,1754829590231,177.950339,0.00019398,2]
[378334426,1754829590818,167.00659404,0.00019399,2]
[378334429,1754829598596,5437.12767432,0.000199,2]
[378334431,1754829631032,4940.73043751,0.00019199,2]
[378334432,1754829631062,19959.26956249,0.00019199,2]
[378334436,1754829658100,40.73043751,0.00019199,2]
[378334437,1754829658123,138.96034249,0.00019199,2]
[378334439,1754829669550,1000.0,0.00019199,2]
[378334440,1754829687617,150.0,0.00025492,30]
[378334441,1754829778948,5493.09943568,0.000199,2]
[378334452,1754829802304,13367.94022183,0.00019148,2]
[378334453,1754829802331,10024.92488537,0.00019148,2]
[378334454,1754829862750,460.0,0.00019997,2]
[378334467,1754829923511,460.0,0.00019997,2]
[378334475,1754829951687,460.0,0.00019997,2]
[378334476,1754829966000,5407.08054809,0.000199,2]
[378334477,1754829975818,460.0,0.00019997,2]
[378334478,1754829977589,460.0,0.00019997,2]
[378334479,1754829989019,460.0,0.00019997,2]
[378334481,1754829999226,460.0,0.00019997,2]
[378334482,1754829999434,9503.7,0.00031484,30]
[378334483,1754830000471,460.0,0.00019997,2]
[378334484,1754830017106,519.84,0.00019997,2]
[378334485,1754830030151,-460.0,0.00019998,2]
[378334486,1754830030172,-460.0,0.00019998,2]
[378334487,1754830030195,-465.29,0.00019998,2]
[378334488,1754830030216,-460.0,0.00019998,2]
[378334489,1754830030236,-371.87748212,0.00019998,2]
[378334490,1754830036224,368.15456654,0.00019997,2]
[378334491,1754830036248,91.84543346,0.00019997,2]
[378334492,1754830045091,416.69428752,0.00019997,2]
[378334493,1754830046838,460.0,0.00019997,2]
[378334494,1754830049729,460.0,0.00019997,2]
[378334495,1754830057202,461.46987122,0.00019997,2]
[378334497,1754830062288,460.0,0.00019997,2]
[378334498,1754830063825,692.27,0.00019997,2]
[378334499,1754830065962,462.44587602,0.00019997,2]
[378334500,1754830069930,460.0,0.00019997,2]
[378334501,1754830077634,460.0,0.00019997,2]
[378334502,1754830080143,460.0,0.00019997,2]
[378334503,1754830082144,460.0,0.00019997,2]
[378334504,1754830082358,460.0,0.00019997,2]
[378334505,1754830085885,460.0,0.00019997,2]
[378334506,1754830086372,460.0,0.00019997,2]
[378334507,1754830089872,715.24,0.00019997,2]
[378334508,1754830103510,460.0,0.00019997,2]
[378334509,1754830105510,460.0,0.00019997,2]
[378334510,1754830108450,460.0,0.00019997,2]
[378334511,1754830110539,460.0,0.00019997,2]
[378334512,1754830119200,460.0,0.00019997,2]
[378334513,1754830123557,1269.9885272,0.00019899,2]
[378334515,1754830128726,460.00393265,0.00019997,2]
[378334516,1754830130140,167.0,0.00025137,30]
[378334517,1754830133816,473.41383789,0.00019997,2]
[378334518,1754830140609,460.0,0.00019997,2]
[378334519,1754830144384,328.87287238,0.00019997,2]
[378334520,1754830150753,460.0,0.00019997,2]
[378334521,1754830155581,5226.6701462,0.000199,2]
[378334522,1754830156591,460.0,0.00019997,2]
[378334523,1754830163364,460.0,0.00019997,2]
[378334526,1754830175962,460.0,0.00019997,2]
[378334527,1754830176148,201.08521546,0.00019997,2]
[378334528,1754830176172,258.91478454,0.00019997,2]
[378334534,1754830195556,460.0,0.00019997,2]
[378334535,1754830197163,460.0,0.00019997,2]
[378334536,1754830202925,460.0,0.00019997,2]
[378334538,1754830223232,460.0,0.00019997,2]
[378334539,1754830224015,651.52,0.00019997,2]
[378334540,1754830224611,460.0,0.00019997,2]
[378334541,1754830226656,460.0,0.00019997,2]
[378334561,1754830232423,460.0,0.00019997,2]
[378334571,1754830232632,-88.12251788,0.00019998,2]
[378334573,1754830232642,-460.0,0.00019998,2]
[378334575,1754830232651,-460.0,0.00019998,2]
[378334577,1754830232660,-508.29114577,0.00019998,2]